fUST/lending_fUST_20250827
["ID","MTS","AMOUNT","RATE_DAILY","PERIOD"]
[381575572,1756288280636,-861.786613,0.00024075,7]
[381575573,1756288280645,-861.786613,0.00024075,7]
[381575574,1756288280654,-408.125973,0.00024075,7]
[381575575,1756288280664,-327.923955,0.00024075,7]
[381575576,1756288280674,-861.78662162,0.00024075,7]
[381575577,1756288280683,-408.125973,0.00024075,7]
[381575578,1756288280693,-327.923955,0.00024075,7]
[381575579,1756288280703,-480.0,0.00024075,2]
[381575580,1756288280716,-408.125973,0.00024075,7]
[381575581,1756288280727,-327.923955,0.00024075,7]
[381575582,1756288280736,-408.125974,0.00024075,7]
[381575583,1756288280746,-327.923951,0.00024075,7]
[381575584,1756288280760,-972.872694,0.00024075,7]
[381575585,1756288280770,-706.72,0.00024075,2]
[381575586,1756288280780,-972.872694,0.00024075,7]
[381575587,1756288280791,-972.872694,0.00024075,7]
[381575588,1756288280800,-972.872704,0.00024075,7]
[381575589,1756288280810,-480.0,0.00024075,2]
[381575590,1756288280819,-151.0,0.00024075,7]
[381575591,1756288280829,-480.0,0.00024075,2]
[381575592,1756288280839,-467.619137,0.00024075,7]
[381575593,1756288280848,-467.619137,0.00024075,7]
[381575594,1756288280857,-467.619137,0.00024075,7]
[381575595,1756288280866,-467.619131,0.00024075,7]
[381575596,1756288280876,-998.21787304,0.00024075,2]
[381575597,1756288280885,-2439.82,0.00024083,2]
[381575598,1756288280895,-650.19,0.00024083,2]
[381575599,1756288280903,-925.45,0.00024083,2]
[381575600,1756288280913,-617.28,0.00024083,2]
[381575601,1756288280922,-549.77948427,0.00024083,2]
[381575602,1756288280932,-5360.55,0.00024083,2]
[381575603,1756288280941,-1094.03,0.00024083,2]
[381575604,1756288280951,-152.648563,0.00024083,7]
[381575605,1756288280960,-216.764303,0.00024083,7]
[381575606,1756288280969,-216.764303,0.00024083,7]
[381575607,1756288280979,-216.764303,0.00024083,7]
[381575608,1756288280989,-216.76431,0.00024083,7]
[381575609,1756288280999,-978.65,0.00024083,2]
[381575610,1756288281010,-151.0,0.00024083,7]
[381575611,1756288281022,-746.76,0.00024083,2]
[381575612,1756288281032,-3399.23,0.00024083,2]
[381575613,1756288281042,-513.09,0.00024083,2]
[381575614,1756288281053,-480.0,0.00024083,2]
[381575615,1756288281064,-480.0,0.00024083,2]
[381575616,1756288281073,-784.35,0.00024083,2]
[381575617,1756288281082,-480.0,0.00024083,2]
[381575618,1756288281092,-480.0,0.00024083,2]
[381575619,1756288281102,-151.0,0.00024083,7]
[381575620,1756288281111,-156.731405,0.00024083,7]
[381575621,1756288281120,-480.0,0.00024083,2]
[381575622,1756288281129,-517.64,0.00024083,2]
[381575623,1756288281138,-151.0,0.00024083,7]
[381575624,1756288281147,-151.0,0.00024083,7]
[381575625,1756288281157,-151.0,0.00024083,7]
[381575626,1756288281166,-480.0,0.00024083,2]
[381575627,1756288281176,-480.0,0.00024083,2]
[381575628,1756288281186,-480.0,0.00024083,2]
[381575629,1756288281195,-480.0,0.00024083,2]
[381575630,1756288281205,-559.11,0.00024083,2]
[381575631,1756288281215,-697.92,0.00024083,2]
[381575632,1756288281224,-691.17,0.00024083,2]
[381575633,1756288281234,-1004.79,0.00024084,2]
[381575634,1756288281243,-931.64,0.00024084,2]
[381575635,1756288281253,-2284.01,0.00024084,2]
[381575636,1756288281262,-1081.0,0.00024091,2]
[381575637,1756288281271,-404.9277606,0.0002411,2]
[381575638,1756288281281,-387.4630707,0.0002411,2]
[381575639,1756288281290,-387.4630707,0.0002411,2]
[381575640,1756288281302,-1081.0,0.00024118,2]
[381575641,1756288281311,-1680.0,0.00024119,2]
[381575642,1756288281322,-300.0,0.00024121,2]
[381575643,1756288281331,-1084.0,0.00024126,2]
[381575644,1756288281340,-738.48,0.00024179,3]
[381575645,1756288281350,-1379.86,0.00024183,2]
[381575646,1756288281359,-639.28,0.00024183,2]
[381575647,1756288281369,-5703.66,0.00024183,2]
[381575648,1756288281379,-2385.93,0.00024183,2]
[381575649,1756288281389,-494.16,0.00024183,2]
[381575650,1756288281399,-962.42,0.00024183,2]
[381575651,1756288281409,-6065.37,0.00024183,2]
[381575652,1756288281418,-3545.42,0.00024183,2]
[381575653,1756288281428,-520.47,0.00024183,2]
[381575654,1756288281438,-242.4410132,0.00024184,2]
[381575655,1756288281447,-511.79,0.00024189,2]
[381575656,1756288281457,-480.0,0.00024189,2]
[381575657,1756288281466,-480.0,0.00024189,2]
[381575658,1756288281475,-480.0,0.00024189,2]
[381575659,1756288281484,-480.0,0.00024189,2]
[381575660,1756288281493,-480.0,0.00024189,2]
[381575661,1756288281503,-480.0,0.00024189,2]
[381575662,1756288281512,-480.0,0.00024189,2]
[381575663,1756288281521,-480.0,0.00024189,2]
[381575664,1756288281530,-480.0,0.00024189,2]
[381575665,1756288281540,-480.0,0.00024189,2]
[381575666,1756288281549,-480.0,0.00024189,2]
[381575667,1756288281558,-480.0,0.00024189,2]
[381575668,1756288281567,-684.54,0.00024189,2]
[381575669,1756288281577,-480.0,0.00024189,2]
[381575670,1756288281586,-567.16,0.00024189,2]
[381575671,1756288281595,-480.0,0.00024189,2]
[381575672,1756288281605,-480.0,0.00024189,2]
[381575673,1756288281614,-540.74,0.00024189,2]
[381575674,1756288281623,-520.88314177,0.00024189,2]
[381575675,1756288281634,-480.0,0.00024189,2]
[381575676,1756288281643,-606.99523577,0.00024189,2]
[381575677,1756288281653,-1915.45,0.00024189,2]
[381575678,1756288281663,-480.0,0.00024189,2]
[381575679,1756288281672,-480.0,0.00024189,2]
[381575680,1756288281682,-480.0,0.00024189,2]
[381575681,1756288281691,-566.54,0.00024189,2]
[381575682,1756288281701,-480.0,0.00024189,2]
[381575683,1756288281711,-506.14,0.00024189,2]
[381575684,1756288281723,-480.0,0.00024189,2]
[381575685,1756288281733,-480.0,0.00024189,2]
[381575686,1756288281745,-480.0,0.00024189,2]
[381575687,1756288281757,-480.0,0.00024189,2]
[381575688,1756288281768,-480.0,0.00024189,2]
[381575689,1756288281778,-480.0,0.00024189,2]
[381575690,1756288281787,-990.34,0.00024189,2]
[381575691,1756288281796,-480.0,0.00024189,2]
[381575692,1756288281809,-480.0,0.00024189,2]
[381575693,1756288281818,-484.84,0.00024189,2]
[381575694,1756288281828,-629.76,0.00024189,2]
[381575695,1756288281838,-480.0,0.00024189,2]
[381575696,1756288281848,-480.0,0.00024189,2]
[381575697,1756288281858,-3194.45,0.00024189,2]
[381575698,1756288281867,-712.63,0.00024189,2]
[381575699,1756288281877,-480.0,0.00024189,2]
[381575700,1756288281886,-480.0,0.00024189,2]
[381575701,1756288281895,-451.26890523,0.00024189,2]
[381575702,1756288281904,-480.0,0.00024189,2]
[381575703,1756288281914,-5424.02,0.00024189,2]
[381575704,1756288281923,-829.41,0.00024189,2]
[381575705,1756288281933,-759.1,0.00024189,2]
[381575706,1756288281942,-593.9,0.00024189,2]
[381575707,1756288281952,-524.28,0.00024189,2]
[381575708,1756288281962,-1496.51,0.00024189,2]
[381575709,1756288281971,-480.0,0.00024189,2]
[381575710,1756288281981,-2079.2,0.00024189,2]
[381575711,1756288282047,-480.0,0.00024189,2]
[381575712,1756288282057,-778.95,0.00024189,2]
[381575713,1756288282066,-480.0,0.00024189,2]
[381575714,1756288282075,-290.548006,0.00024189,7]
[381575715,1756288282085,-480.0,0.00024189,2]
[381575716,1756288282095,-298.56992,0.00024189,7]
[381575717,1756288282105,-853.98,0.00024189,2]
[381575718,1756288282114,-187.039714,0.00024189,7]
[381575719,1756288282124,-298.56992,0.00024189,7]
[381575720,1756288282133,-187.039714,0.00024189,7]
[381575721,1756288282142,-298.56992,0.00024189,7]
[381575722,1756288282151,-187.039714,0.00024189,7]
[381575723,1756288282161,-298.569911,0.00024189,7]
[381575724,1756288282170,-187.03972,0.00024189,7]
[381575725,1756288282180,-151.0,0.00024189,7]
[381575726,1756288282189,-151.0,0.00024189,7]
[381575727,1756288282201,-480.0,0.00024189,2]
[381575728,1756288282210,-554.37,0.00024189,2]
[381575729,1756288282220,-1187.29,0.00024189,2]
[381575730,1756288282229,-173.122268,0.00024189,7]
[381575731,1756288282239,-173.122268,0.00024189,7]
[381575732,1756288282248,-173.122268,0.00024189,7]
[381575733,1756288282258,-173.122266,0.00024189,7]
[381575734,1756288282268,-480.0,0.00024189,2]
[381575735,1756288282277,-480.0,0.00024189,2]
[381575736,1756288282287,-658.92,0.00024189,2]
[381575737,1756288282297,-480.0,0.00024189,2]
[381575738,1756288282307,-480.0,0.00024189,2]
[381575739,1756288282316,-480.0,0.00024189,2]
[381575740,1756288282326,-728.31,0.00024189,2]
[381575741,1756288282335,-94501.98,0.000242,7]
[381575742,1756288282344,-7149.87,0.000242,7]
[381575743,1756288282353,-151.0,0.000242,7]
[381575744,1756288282363,-151.0,0.000242,7]
[381575745,1756288282372,-151.0,0.000242,7]
[381575746,1756288282381,-151.0,0.000242,7]
[381575747,1756288282391,-151.0,0.000242,7]
[381575748,1756288282401,-151.0,0.000242,7]
[381575749,1756288282410,-151.0,0.000242,7]
[381575750,1756288282419,-529.74457,0.000242,7]
[381575751,1756288282428,-529.74457,0.000242,7]
[381575752,1756288282437,-529.74457,0.000242,7]
[381575753,1756288282447,-529.744572,0.000242,7]
[381575754,1756288282456,-151.0,0.000242,7]
[381575755,1756288282465,-151.0,0.000242,7]
[381575756,1756288282475,-151.0,0.000242,7]
[381575757,1756288282484,-151.0,0.000242,7]
[381575758,1756288282493,-151.0,0.000242,7]
[381575759,1756288282503,-151.0,0.000242,7]
[381575760,1756288282512,-151.0,0.000242,7]
[381575761,1756288282522,-151.0,0.000242,7]
[381575762,1756288282531,-151.0,0.000242,7]
[381575763,1756288282541,-151.0,0.000242,7]
[381575764,1756288282550,-151.0,0.000242,7]
[381575765,1756288282560,-151.0,0.000242,7]
[381575766,1756288282569,-151.0,0.000242,7]
[381575767,1756288282578,-151.0,0.00024206,7]
[381575768,1756288282587,-151.0,0.00024206,7]
[381575769,1756288282597,-151.0,0.00024206,7]
[381575770,1756288282606,-512.14,0.00024212,2]
[381575771,1756288282615,-480.0,0.00024212,2]
[381575772,1756288282625,-480.0,0.00024212,2]
[381575773,1756288282634,-483.23,0.00024212,2]
[381575774,1756288282643,-480.0,0.00024212,2]
[381575775,1756288282652,-480.0,0.00024212,2]
[381575776,1756288282663,-722.14,0.00024212,2]
[381575777,1756288282674,-480.0,0.00024212,2]
[381575778,1756288282683,-480.0,0.00024212,2]
[381575779,1756288282692,-480.0,0.00024212,2]
[381575780,1756288282702,-480.0,0.00024212,2]
[381575781,1756288282711,-519.21,0.00024212,2]
[381575782,1756288282720,-480.0,0.00024212,2]
[381575783,1756288282729,-480.0,0.00024212,2]
[381575784,1756288282738,-480.0,0.00024212,2]
[381575785,1756288282750,-520.4,0.00024212,2]
[381575786,1756288282764,-480.0,0.00024212,2]
[381575787,1756288282773,-480.0,0.00024212,2]
[381575788,1756288282782,-584.23,0.00024212,2]
[381575789,1756288282791,-519.71,0.00024212,2]
[381575790,1756288282801,-480.0,0.00024212,2]
[381575791,1756288282810,-480.0,0.00024212,2]
[381575792,1756288282819,-480.0,0.00024212,2]
[381575793,1756288282828,-955.09,0.00024212,2]
[381575794,1756288282839,-804.4,0.00024212,2]
[381575795,1756288282849,-480.0,0.00024212,2]
[381575796,1756288282858,-480.0,0.00024212,2]
[381575797,1756288282867,-480.0,0.00024212,2]
[381575798,1756288282876,-717.47,0.00024212,2]
[381575799,1756288282885,-1454.66,0.00024212,2]
[381575800,1756288282894,-480.0,0.00024212,2]
[381575801,1756288282903,-667.64,0.00024212,2]
[381575802,1756288282912,-480.0,0.00024212,2]
[381575803,1756288282921,-480.0,0.00024212,2]
[381575804,1756288282930,-599.5,0.00024212,2]
[381575805,1756288282941,-580.22,0.00024212,2]
[381575806,1756288282950,-666.46,0.00024212,2]
[381575807,1756288282960,-480.0,0.00024212,2]
[381575808,1756288282969,-480.0,0.00024212,2]
[381575809,1756288282979,-1498.11,0.00024212,2]
[381575810,1756288282989,-865.47,0.00024212,2]
[381575811,1756288282998,-730.48,0.00024212,2]
[381575812,1756288283008,-480.0,0.00024212,2]
[381575813,1756288283017,-706.94,0.00024212,2]
[381575814,1756288283026,-1666.01,0.00024212,2]
[381575815,1756288283036,-480.0,0.00024212,2]
[381575816,1756288283045,-547.92,0.00024212,2]
[381575817,1756288283054,-913.68,0.00024212,2]
[381575818,1756288283064,-407.99582337,0.00024212,2]
[381575819,1756288283073,-530.0,0.00024212,2]
[381575820,1756288283083,-480.0,0.00024212,2]
[381575821,1756288283093,-566.54,0.00024212,2]
[381575822,1756288283102,-480.0,0.00024212,2]
[381575823,1756288283112,-593.26,0.00024212,2]
[381575824,1756288283121,-575.53,0.00024212,2]
[381575825,1756288283130,-480.0,0.00024212,2]
[381575826,1756288283139,-574.91,0.00024212,2]
[381575827,1756288283149,-480.0,0.00024212,2]
[381575828,1756288283159,-1217.34,0.00024212,2]
[381575829,1756288283168,-480.0,0.00024212,2]
[381575830,1756288283177,-480.0,0.00024212,2]
[381575831,1756288283187,-787.41,0.00024212,2]
[381575832,1756288283197,-482.09601777,0.00024212,2]
[381575833,1756288283206,-480.0,0.00024212,2]
[381575834,1756288283215,-533.57,0.00024212,2]
[381575835,1756288283227,-480.0,0.00024212,2]
[381575836,1756288283236,-871.59,0.00024212,2]
[381575837,1756288283246,-480.0,0.00024212,2]
[381575838,1756288283257,-480.0,0.00024212,2]
[381575839,1756288283267,-480.0,0.00024212,2]
[381575840,1756288283277,-406.56828351,0.00024212,2]
[381575841,1756288283286,-812.35,0.00024212,2]
[381575842,1756288283296,-341.22691864,0.00024212,2]
[381575843,1756288283306,-613.14,0.00024212,2]
[381575844,1756288283315,-480.0,0.00024212,2]
[381575845,1756288283325,-480.0,0.00024212,2]
[381575846,1756288283335,-480.0,0.00024212,2]
[381575847,1756288283345,-481.90731507,0.00024212,2]
[381575848,1756288283354,-480.0,0.00024212,2]
[381575849,1756288283363,-1283.2,0.00024212,2]
[381575850,1756288283374,-480.0,0.00024212,2]
[381575851,1756288283384,-828.64,0.00024212,2]
[381575852,1756288283394,-356.00317973,0.00024212,2]
[381575853,1756288283404,-507.03,0.00024212,2]
[381575854,1756288283414,-482.32975304,0.00024212,2]
[381575855,1756288283424,-494.59,0.00024212,2]
[381575856,1756288283433,-1014.51,0.00024212,2]
[381575857,1756288283443,-618.7,0.00024212,2]
[381575858,1756288283453,-480.0,0.00024212,2]
[381575859,1756288283462,-1160.58,0.00024212,2]
[381575860,1756288283472,-480.0,0.00024212,2]
[381575861,1756288283481,-480.0,0.00024212,2]
[381575862,1756288283491,-500.0,0.00024212,2]
[381575863,1756288283501,-588.62,0.00024212,2]
[381575864,1756288283510,-582.81,0.00024212,2]
[381575865,1756288283520,-259.63379201,0.00024212,2]
[381575866,1756288283529,-480.0,0.00024212,2]
[381575867,1756288283539,-480.0,0.00024212,2]
[381575868,1756288283548,-344.6034292,0.00024212,2]
[381575869,1756288283558,-494.79,0.00024212,2]
[381575870,1756288283568,-713.46,0.00024212,2]
[381575871,1756288283577,-480.0,0.00024212,2]
[381575872,1756288283587,-480.0,0.00024212,2]
[381575873,1756288283597,-770.51,0.00024213,2]
[381575874,1756288283607,-898.22,0.00024213,2]
[381575875,1756288283617,-480.0,0.00024215,2]
[381575876,1756288283626,-480.0,0.00024215,2]
[381575877,1756288283636,-816.02,0.00024216,2]
[381575878,1756288283646,-1050.17,0.00024216,2]
[381575879,1756288283656,-685.52,0.00024216,2]
[381575880,1756288283666,-686.0,0.00024216,2]
[381575881,1756288283675,-700.03,0.00024216,2]
[381575882,1756288283685,-921.5,0.00024216,2]
[381575883,1756288283695,-1083.42,0.00024216,2]
[381575884,1756288283705,-481.59477902,0.00024216,2]
[381575885,1756288283715,-766.36,0.00024216,2]
[381575886,1756288283724,-648.57,0.00024216,2]
[381575887,1756288283734,-480.0,0.00024216,2]
[381575888,1756288283743,-480.0,0.00024216,2]
[381575889,1756288283753,-557.87,0.00024216,2]
[381575890,1756288283766,-480.0,0.00024216,2]
[381575891,1756288283776,-491.91,0.00024216,2]
[381575892,1756288283786,-480.0,0.00024249,2]
[381575893,1756288283795,-480.0,0.00024249,2]
[381575894,1756288283804,-480.0,0.00024249,2]
[381575895,1756288283814,-480.0,0.00024249,2]
[381575896,1756288283823,-480.0,0.00024249,2]
[381575897,1756288283834,-481.70446029,0.00024249,2]
[381575898,1756288283844,-789.09,0.00024249,2]
[381575899,1756288283854,-768.77,0.00024249,2]
[381575900,1756288283863,-480.0,0.00024249,2]
[381575901,1756288283873,-616.36,0.00024249,2]
[381575902,1756288283882,-480.0,0.00024252,2]
[381575903,1756288283892,-567.4,0.00024252,2]
[381575904,1756288283902,-959.11,0.00024252,2]
[381575905,1756288283912,-1401.83,0.00024252,2]
[381575906,1756288283921,-2249.38,0.00024252,2]
[381575907,1756288283931,-480.0,0.00024253,2]
[381575908,1756288283941,-497.99,0.00024253,2]
[381575909,1756288283951,-480.0,0.00024253,2]
[381575910,1756288283961,-553.57,0.00024253,2]
[381575911,1756288283971,-597.25,0.00024253,2]
[381575912,1756288283980,-755.86,0.00024253,2]
[381575913,1756288283989,-1085.75,0.00024253,2]
[381575914,1756288283999,-1573.83,0.00024253,2]
[381575915,1756288284010,-400.0,0.00024253,2]
[381575916,1756288284020,-480.0,0.00024253,2]
[381575917,1756288284030,-480.0,0.00024253,2]
[381575918,1756288284039,-480.0,0.00024253,2]
[381575919,1756288284050,-480.0,0.00024253,2]
[381575920,1756288284059,-499.64,0.00024253,2]
[381575921,1756288284069,-507.21,0.00024253,2]
[381575922,1756288284079,-523.7,0.00024253,2]
[381575923,1756288284089,-943.05,0.00024253,2]
[381575924,1756288284099,-480.0,0.00024253,2]
[381575925,1756288284109,-564.27,0.00024253,2]
[381575926,1756288284119,-519.72,0.00024253,2]
[381575927,1756288284128,-617.02,0.00024253,2]
[381575928,1756288284138,-480.0,0.00024253,2]
[381575929,1756288284148,-480.0,0.00024253,2]
[381575930,1756288284158,-911.02,0.00024253,2]
[381575931,1756288284168,-1463.69,0.00024253,2]
[381575932,1756288284178,-620.71,0.00024253,2]
[381575933,1756288284188,-1304.04,0.00024253,2]
[381575934,1756288284198,-1671.4,0.00024253,2]
[381575935,1756288284207,-864.97,0.00024253,2]
[381575936,1756288284217,-670.9,0.00024253,2]
[381575937,1756288284227,-539.61,0.00024253,2]
[381575938,1756288284237,-480.0,0.00024253,2]
[381575939,1756288284246,-480.0,0.00024253,2]
[381575940,1756288284256,-480.0,0.00024253,2]
[381575941,1756288284266,-1318.43,0.00024253,2]
[381575942,1756288284276,-546.1,0.00024253,2]
[381575943,1756288284286,-870.27,0.00024253,2]
[381575944,1756288284295,-480.0,0.00024253,2]
[381575945,1756288284305,-480.0,0.00024253,2]
[381575946,1756288284315,-1065.29,0.00024253,2]
[381575947,1756288284326,-480.0,0.00024253,2]
[381575948,1756288284335,-490.13,0.00024253,2]
[381575949,1756288284345,-480.0,0.00024253,2]
[381575950,1756288284355,-749.7,0.00024253,2]
[381575951,1756288284365,-579.29,0.00024253,2]
[381575952,1756288284376,-1026.67,0.00024253,2]
[381575953,1756288284386,-525.29,0.00024253,2]
[381575954,1756288284396,-480.0,0.00024253,2]
[381575955,1756288284406,-283.614393,0.00024257,7]
[381575956,1756288284416,-260.0,0.00024257,2]
[381575957,1756288284426,-151.0,0.00024262,7]
[381575958,1756288284437,-931.311,0.00024263,6]
[381575959,1756288284447,-176.256,0.00024263,6]
[381575960,1756288284458,-1389.79239314,0.00024264,2]
[381575961,1756288284467,-1500.0,0.00024268,2]
[381575962,1756288284478,-1003.2238651,0.00024268,2]
[381575963,1756288284487,-350.0,0.00024268,2]
[381575964,1756288284497,-1510.03703661,0.00024268,2]
[381575965,1756288284508,-1500.0,0.00024268,2]
[381575966,1756288284517,-1500.0,0.00024268,2]
[381575967,1756288284527,-1500.0,0.00024268,2]
[381575968,1756288284536,-1500.0,0.00024268,2]
[381575969,1756288284546,-642.34281078,0.00024268,2]
[381575970,1756288284555,-1181.72219964,0.00024268,2]
[381575971,1756288284565,-1500.0,0.00024268,2]
[381575972,1756288284575,-1558.31373769,0.00024268,2]
[381575973,1756288284584,-1508.32274485,0.00024268,2]
[381575974,1756288284595,-1500.0,0.00024268,2]
[381575975,1756288284604,-506.92283959,0.00024268,2]
[381575976,1756288284614,-1500.0,0.00024268,2]
[381575977,1756288284623,-1500.0,0.00024268,2]
[381575978,1756288284633,-1500.0,0.00024268,2]
[381575979,1756288284643,-1500.0,0.00024268,2]
[381575980,1756288284653,-1586.16377958,0.00024268,2]
[381575981,1756288284663,-1500.0,0.00024268,2]
[381575982,1756288284673,-1500.0,0.00024268,2]
[381575983,1756288284682,-1500.0,0.00024268,2]
[381575984,1756288284692,-1011.33233376,0.00024268,2]
[381575985,1756288284702,-847.35570464,0.00024268,2]
[381575986,1756288284711,-164.1333832,0.00024268,2]
[381575987,1756288284721,-1500.0,0.00024268,2]
[381575988,1756288284731,-1081.0,0.00024285,2]
[381575989,1756288284740,-811.86,0.00024287,2]
[381575990,1756288284750,-676.41,0.00024288,2]
[381575991,1756288284763,-480.0,0.00024288,2]
[381575992,1756288284906,-480.0,0.00024288,2]
[381575993,1756288284925,-480.0,0.00024288,2]
[381575994,1756288284934,-552.9,0.00024288,2]
[381575995,1756288284943,-480.0,0.00024288,2]
[381575996,1756288284953,-480.0,0.00024288,2]
[381575997,1756288284962,-480.0,0.00024288,2]
[381575998,1756288284971,-480.0,0.00024288,2]
[381575999,1756288284981,-480.0,0.00024288,2]
[381576000,1756288284990,-480.0,0.00024288,2]
[381576001,1756288285000,-480.0,0.00024288,2]
[381576002,1756288285012,-480.0,0.00024288,2]
[381576003,1756288285022,-480.0,0.00024288,2]
[381576004,1756288285031,-480.0,0.00024288,2]
[381576005,1756288285040,-480.0,0.00024288,2]
[381576006,1756288285049,-560.46,0.00024288,2]
[381576007,1756288285059,-480.0,0.00024288,2]
[381576008,1756288285068,-1114.16,0.00024288,2]
[381576009,1756288285077,-480.0,0.00024288,2]
[381576010,1756288285087,-480.0,0.00024288,2]
[381576011,1756288285096,-480.0,0.00024288,2]
[381576012,1756288285105,-480.0,0.00024288,2]
[381576013,1756288285115,-480.0,0.00024288,2]
[381576014,1756288285124,-480.0,0.00024288,2]
[381576015,1756288285134,-567.71,0.00024288,2]
[381576016,1756288285143,-2448.58,0.00024288,2]
[381576017,1756288285154,-4501.32,0.00024288,2]
[381576018,1756288285163,-548.51,0.00024288,2]
[381576019,1756288285173,-480.0,0.00024288,2]
[381576020,1756288285182,-480.0,0.00024288,2]
[381576021,1756288285191,-846.39,0.00024288,2]
[381576022,1756288285200,-545.36,0.00024288,2]
[381576023,1756288285210,-480.0,0.00024288,2]
[381576024,1756288285219,-489.85,0.00024288,2]
[381576025,1756288285229,-480.0,0.00024288,2]
[381576026,1756288285238,-1623.33,0.00024288,2]
[381576027,1756288285248,-1060.8,0.00024288,2]
[381576028,1756288285257,-747.20086174,0.00024293,2]
[381576029,1756288285266,-480.0,0.00024317,2]
[381576030,1756288285275,-3222.59,0.00024317,2]
[381576031,1756288285285,-480.0,0.00024317,2]
[381576032,1756288285295,-537.98,0.00024317,2]
[381576033,1756288285304,-480.0,0.00024317,2]
[381576034,1756288285313,-480.0,0.00024317,2]
[381576035,1756288285322,-2446.49,0.00024317,2]
[381576036,1756288285331,-480.0,0.00024348,2]
[381576037,1756288285341,-480.0,0.00024348,2]
[381576038,1756288285350,-480.0,0.00024348,2]
[381576039,1756288285359,-2540.23,0.00024348,2]
[381576040,1756288285369,-977.08,0.00024348,2]
[381576041,1756288285378,-696.95,0.00024348,2]
[381576042,1756288285388,-1614.26,0.00024348,2]
[381576043,1756288285397,-821.83,0.00024348,2]
[381576044,1756288285406,-1274.58,0.00024348,2]
[381576045,1756288285416,-480.0,0.00024348,2]
[381576046,1756288285425,-665.04,0.00024348,2]
[381576047,1756288285434,-677.99,0.00024348,2]
[381576048,1756288285444,-480.0,0.00024348,2]
[381576049,1756288285453,-662.7,0.00024348,2]
[381576050,1756288285462,-480.0,0.00024348,2]
[381576051,1756288285473,-608.21,0.00024348,2]
[381576052,1756288285482,-789.92,0.00024348,2]
[381576053,1756288285492,-892.23,0.00024348,2]
[381576054,1756288285501,-480.0,0.00024348,2]
[381576055,1756288285510,-11206.39,0.00024348,2]
[381576056,1756288285519,-947.31,0.00024348,2]
[381576057,1756288285529,-633.88,0.00024348,2]
[381576058,1756288285538,-270.82565939,0.00024348,2]
[381576059,1756288285547,-2303.22,0.00024348,2]
[381576060,1756288285557,-480.0,0.00024348,2]
[381576061,1756288285566,-746.85,0.00024348,2]
[381576062,1756288285575,-1887.52,0.00024348,2]
[381576063,1756288285584,-480.0,0.00024348,2]
[381576064,1756288285594,-480.0,0.00024348,2]
[381576065,1756288285603,-841.04,0.00024348,2]
[381576066,1756288285613,-10418.12,0.00024348,2]
[381576067,1756288285622,-480.0,0.00024349,2]
[381576068,1756288285631,-966.96,0.00024349,2]
[381576069,1756288285640,-480.0,0.00024349,2]
[381576070,1756288285649,-586.49,0.00024349,2]
[381576071,1756288285659,-624.24,0.00024349,2]